[Event "*** Titled Tuesday Blitz"]
[Site "Chess.com"]
[Date "2020.11.10"]
[Round "6"]
[White "alexrustemov"]
[Black "ambaixador"]
[Result "0-1"]
[WhiteElo "2713"]
[BlackElo "2475"]
[TimeControl "180+1"]
[EndTime "11:07:43 PST"]
[Termination "ambaixador won by resignation"]

1. d4 {[%clk 0:03:00.9]} 1... d5 {[%clk 0:02:59.3]} 2. c4 {[%clk 0:03:00.6]}
2... e6 {[%clk 0:02:59.5]} 3. Nc3 {[%clk 0:03:00.8]} 3... Nf6 {[%clk 0:02:59.7]}
4. cxd5 {[%clk 0:03:01.4]} 4... exd5 {[%clk 0:02:59.5]} 5. Bg5 {[%clk
0:03:01.9]} 5... c6 {[%clk 0:02:59.7]} 6. e3 {[%clk 0:03:02.4]} 6... Be7 {[%clk
0:02:58.5]} 7. Bd3 {[%clk 0:03:01.8]} 7... Nbd7 {[%clk 0:02:53]} 8. Qc2 {[%clk
0:03:01.1]} 8... Nf8 {[%clk 0:02:52.5]} 9. Nf3 {[%clk 0:03:00.3]} 9... Ne6
{[%clk 0:02:52.1]} 10. Bh4 {[%clk 0:03:00.6]} 10... O-O {[%clk 0:02:49.4]} 11.
Bxf6 {[%clk 0:02:58.3]} 11... Bxf6 {[%clk 0:02:50.3]} 12. Bxh7+ {[%clk
0:02:58.3]} 12... Kh8 {[%clk 0:02:50.6]} 13. Bd3 {[%clk 0:02:53.8]} 13... Qd6
{[%clk 0:02:34]} 14. O-O {[%clk 0:02:52.8]} 14... g6 {[%clk 0:02:31.5]} 15. h4
{[%clk 0:02:36.7]} 15... Kg7 {[%clk 0:02:30.8]} 16. g3 {[%clk 0:02:36]} 16...
Rh8 {[%clk 0:02:28.6]} 17. Kg2 {[%clk 0:02:36.4]} 17... Bd7 {[%clk 0:02:25.4]}
18. Rh1 {[%clk 0:02:36.8]} 18... c5 {[%clk 0:02:17]} 19. dxc5 {[%clk 0:02:33.9]}
19... Nxc5 {[%clk 0:02:17.9]} 20. Nd4 {[%clk 0:02:25.7]} 20... a6 {[%clk
0:02:02]} 21. Rad1 {[%clk 0:02:24.9]} 21... Rac8 {[%clk 0:01:38]} 22. Qd2 {[%clk
0:02:20.6]} 22... b5 {[%clk 0:00:51.6]} 23. a3 {[%clk 0:02:16.3]} 23... Bxd4
{[%clk 0:00:44.8]} 24. exd4 {[%clk 0:02:15.2]} 24... Nb3 {[%clk 0:00:45.1]} 25.
Qg5 {[%clk 0:02:12.3]} 25... Nxd4 {[%clk 0:00:42.5]} 26. Qxd5 {[%clk 0:02:10]}
26... Bc6 {[%clk 0:00:38.8]} 27. Be4 {[%clk 0:02:07.5]} 27... Bxd5 {[%clk
0:00:38.3]} 28. Bxd5 {[%clk 0:02:05.8]} 28... Rxc3 {[%clk 0:00:35.6]} 29. Rxd4
{[%clk 0:02:03.5]} 29... Rc5 {[%clk 0:00:35]} 30. Rhd1 {[%clk 0:02:02.8]} 30...
Rd8 {[%clk 0:00:35.1]} 0-1

[Event "*** Titled Tuesday Blitz"]
[Site "Chess.com"]
[Date "2020.11.10"]
[Round "6"]
[White "BilodeauA"]
[Black "Karateloru"]
[Result "0-1"]
[WhiteElo "2897"]
[BlackElo "2740"]
[TimeControl "180+1"]
[EndTime "11:07:44 PST"]
[Termination "Karateloru won by resignation"]

1. d4 {[%clk 0:03:00.9]} 1... Nf6 {[%clk 0:02:59.9]} 2. Nc3 {[%clk 0:03:01]}
2... e6 {[%clk 0:03:00.5]} 3. Bf4 {[%clk 0:03:00.6]} 3... Bd6 {[%clk 0:02:52.4]}
4. Bxd6 {[%clk 0:02:57.1]} 4... cxd6 {[%clk 0:02:53.3]} 5. e4 {[%clk 0:02:57.7]}
5... a6 {[%clk 0:02:49.7]} 6. a4 {[%clk 0:02:55.5]} 6... O-O {[%clk 0:02:48.3]}
7. Nf3 {[%clk 0:02:55.6]} 7... b6 {[%clk 0:02:47.7]} 8. Bd3 {[%clk 0:02:55.9]}
8... Bb7 {[%clk 0:02:47.8]} 9. O-O {[%clk 0:02:56.7]} 9... d5 {[%clk 0:02:45.9]}
10. e5 {[%clk 0:02:54.4]} 10... Ne8 {[%clk 0:02:45.8]} 11. Qe2 {[%clk
0:02:47.6]} 11... Nc6 {[%clk 0:02:44.9]} 12. h4 {[%clk 0:02:41.6]} 12... h6
{[%clk 0:02:40.6]} 13. Nd1 {[%clk 0:02:40.4]} 13... Nb4 {[%clk 0:02:40.2]} 14.
Ne3 {[%clk 0:02:39.8]} 14... d6 {[%clk 0:02:38.6]} 15. Ng4 {[%clk 0:02:36.1]}
15... Nxd3 {[%clk 0:02:36.3]} 16. cxd3 {[%clk 0:02:36.2]} 16... dxe5 {[%clk
0:02:21]} 17. Ngxe5 {[%clk 0:02:35.9]} 17... Nf6 {[%clk 0:02:20]} 18. Qd2 {[%clk
0:02:28.3]} 18... a5 {[%clk 0:02:17]} 19. Qf4 {[%clk 0:02:22.4]} 19... Rc8
{[%clk 0:02:14.9]} 20. Rac1 {[%clk 0:02:21.9]} 20... Qe7 {[%clk 0:02:09.5]} 21.
g4 {[%clk 0:02:20.4]} 21... Nd7 {[%clk 0:02:07.6]} 22. Nxd7 {[%clk 0:02:13.4]}
22... Qxd7 {[%clk 0:02:06.4]} 23. b3 {[%clk 0:02:13.5]} 23... Ba6 {[%clk
0:02:02.9]} 24. Ne5 {[%clk 0:02:12.4]} 24... Qd6 {[%clk 0:01:56.4]} 25. g5
{[%clk 0:02:11.6]} 25... f6 {[%clk 0:01:38.5]} 26. Rxc8 {[%clk 0:02:02.4]} 26...
Bxc8 {[%clk 0:01:37.4]} 27. gxf6 {[%clk 0:02:02.2]} 27... Rxf6 {[%clk
0:01:38.3]} 28. Qg3 {[%clk 0:01:52]} 28... Qc7 {[%clk 0:01:36.4]} 29. Qe3 {[%clk
0:01:44.4]} 29... Rf8 {[%clk 0:01:05]} 30. Rc1 {[%clk 0:01:42.5]} 30... Qd8
{[%clk 0:01:04.7]} 31. Ng6 {[%clk 0:01:31]} 31... Rf6 {[%clk 0:00:55.1]} 32.
Rxc8 {[%clk 0:01:29.7]} 32... Rxg6+ {[%clk 0:00:54.8]} 33. Qg5 {[%clk
0:01:27.9]} 33... Rxg5+ {[%clk 0:00:54.2]} 0-1

[Event "*** Titled Tuesday Blitz"]
[Site "Chess.com"]
[Date "2020.11.10"]
[Round "6"]
[White "Mr_Heisenberg13"]
[Black "JoachimMouhamad"]
[Result "1-0"]
[WhiteElo "2484"]
[BlackElo "2346"]
[TimeControl "180+1"]
[EndTime "11:07:50 PST"]
[Termination "Mr_Heisenberg13 won by resignation"]

1. e4 {[%clk 0:03:00.9]} 1... e5 {[%clk 0:02:56.8]} 2. Nf3 {[%clk 0:03:01]} 2...
Nc6 {[%clk 0:02:56.5]} 3. Bb5 {[%clk 0:03:01.5]} 3... a6 {[%clk 0:02:56.8]} 4.
Ba4 {[%clk 0:03:01.7]} 4... Nf6 {[%clk 0:02:57.1]} 5. Nc3 {[%clk 0:03:02]} 5...
b5 {[%clk 0:02:48.2]} 6. Bb3 {[%clk 0:03:01.9]} 6... d6 {[%clk 0:02:45.7]} 7.
Ng5 {[%clk 0:02:58.6]} 7... Be6 {[%clk 0:02:26.7]} 8. Nxe6 {[%clk 0:02:53.9]}
8... fxe6 {[%clk 0:02:26.7]} 9. Bxe6 {[%clk 0:02:54.8]} 9... Nd4 {[%clk
0:02:20.7]} 10. Bb3 {[%clk 0:02:52.2]} 10... Be7 {[%clk 0:02:15]} 11. O-O {[%clk
0:02:51.4]} 11... Nxb3 {[%clk 0:02:14.8]} 12. axb3 {[%clk 0:02:51.9]} 12... O-O
{[%clk 0:02:15.7]} 13. d3 {[%clk 0:02:51.8]} 13... c6 {[%clk 0:02:14.1]} 14. Kh1
{[%clk 0:02:50.6]} 14... Qe8 {[%clk 0:02:10.2]} 15. Qe2 {[%clk 0:02:49.1]} 15...
Qg6 {[%clk 0:02:08.5]} 16. f4 {[%clk 0:02:38.2]} 16... Nh5 {[%clk 0:02:03.4]}
17. f5 {[%clk 0:02:31.5]} 17... Qf7 {[%clk 0:01:59]} 18. Be3 {[%clk 0:02:24.2]}
18... d5 {[%clk 0:01:54.6]} 19. Bg1 {[%clk 0:02:19.2]} 19... Nf4 {[%clk
0:01:51.7]} 20. Qf3 {[%clk 0:02:14.8]} 20... g6 {[%clk 0:01:47.9]} 21. g3 {[%clk
0:02:05.8]} 21... Nh3 {[%clk 0:01:37.8]} 22. exd5 {[%clk 0:02:00.7]} 22... gxf5
{[%clk 0:01:33.3]} 23. dxc6 {[%clk 0:01:58.3]} 23... Ng5 {[%clk 0:01:26.3]} 24.
Qd5 {[%clk 0:01:55.4]} 24... Rfc8 {[%clk 0:00:49.7]} 25. Rxf5 {[%clk 0:01:51.8]}
25... Qxd5+ {[%clk 0:00:09.5]} 26. Nxd5 {[%clk 0:01:51.1]} 1-0

[Event "*** Titled Tuesday Blitz"]
[Site "Chess.com"]
[Date "2020.11.10"]
[Round "6"]
[White "NewBornNow"]
[Black "ural58"]
[Result "1-0"]
[WhiteElo "2653"]
[BlackElo "2379"]
[TimeControl "180+1"]
[EndTime "11:07:52 PST"]
[Termination "NewBornNow won by resignation"]

1. e4 {[%clk 0:02:58.9]} 1... d5 {[%clk 0:02:49.8]} 2. exd5 {[%clk 0:02:57.9]}
2... Qxd5 {[%clk 0:02:49]} 3. Nc3 {[%clk 0:02:57.7]} 3... Qa5 {[%clk 0:02:47.9]}
4. Nf3 {[%clk 0:02:57.6]} 4... Nf6 {[%clk 0:02:48.4]} 5. Be2 {[%clk 0:02:57.6]}
5... Nc6 {[%clk 0:02:48.6]} 6. O-O {[%clk 0:02:57.3]} 6... Bg4 {[%clk
0:02:48.6]} 7. h3 {[%clk 0:02:57.3]} 7... Bh5 {[%clk 0:02:48.2]} 8. b4 {[%clk
0:02:56.1]} 8... Nxb4 {[%clk 0:02:47.1]} 9. Rb1 {[%clk 0:02:55.8]} 9... O-O-O
{[%clk 0:02:32.3]} 10. a3 {[%clk 0:02:54.9]} 10... Nc6 {[%clk 0:02:32.2]} 11.
Rb5 {[%clk 0:02:53.1]} 11... Qxc3 {[%clk 0:02:32.2]} 12. dxc3 {[%clk 0:02:53.1]}
12... Rxd1 {[%clk 0:02:32.1]} 13. Rxd1 {[%clk 0:02:53.3]} 13... a6 {[%clk
0:02:30.7]} 14. Rxh5 {[%clk 0:02:47.2]} 14... Nxh5 {[%clk 0:02:30.5]} 15. Ng5
{[%clk 0:02:47.3]} 15... Nf6 {[%clk 0:02:19.8]} 16. Nxf7 {[%clk 0:02:45.1]}
16... Rg8 {[%clk 0:02:20]} 17. g4 {[%clk 0:02:13.9]} 17... e6 {[%clk 0:02:16.4]}
18. Bc4 {[%clk 0:02:08.7]} 18... Nd5 {[%clk 0:02:12.5]} 19. Ng5 {[%clk
0:02:07.9]} 19... Be7 {[%clk 0:02:00]} 20. Nxe6 {[%clk 0:02:05.8]} 20... Nxc3
{[%clk 0:02:00.1]} 21. Re1 {[%clk 0:02:04]} 21... Na5 {[%clk 0:01:53.5]} 22. Bd3
{[%clk 0:02:03.1]} 22... Nc6 {[%clk 0:01:14.2]} 23. Bxh7 {[%clk 0:01:55.9]}
23... Rh8 {[%clk 0:01:14.3]} 24. Bf5 {[%clk 0:01:53.3]} 24... g6 {[%clk
0:01:08.1]} 25. Bxg6 {[%clk 0:01:49.5]} 25... Rxh3 {[%clk 0:01:08.7]} 26. Kg2
{[%clk 0:01:44.6]} 26... Rh8 {[%clk 0:01:02.9]} 27. Bb2 {[%clk 0:01:40.8]} 27...
Rg8 {[%clk 0:00:55]} 28. Bf5 {[%clk 0:01:34.6]} 28... Nd5 {[%clk 0:00:45.7]} 29.
Nf4+ {[%clk 0:01:31.9]} 1-0

[Event "*** Titled Tuesday Blitz"]
[Site "Chess.com"]
[Date "2020.11.10"]
[Round "6"]
[White "vladislavkovalev"]
[Black "Margency"]
[Result "1-0"]
[WhiteElo "2862"]
[BlackElo "2691"]
[TimeControl "180+1"]
[EndTime "11:08:01 PST"]
[Termination "vladislavkovalev won by resignation"]

1. e4 {[%clk 0:03:00.9]} 1... c5 {[%clk 0:02:58.5]} 2. Be2 {[%clk 0:03:01]} 2...
Nc6 {[%clk 0:02:58.2]} 3. d3 {[%clk 0:03:01.9]} 3... g6 {[%clk 0:02:58.5]} 4. f4
{[%clk 0:03:02.8]} 4... Bg7 {[%clk 0:02:58.8]} 5. Nf3 {[%clk 0:03:03.7]} 5... d6
{[%clk 0:02:59.4]} 6. O-O {[%clk 0:03:04.4]} 6... Nf6 {[%clk 0:02:59.8]} 7. c3
{[%clk 0:03:04.2]} 7... O-O {[%clk 0:02:59]} 8. Kh1 {[%clk 0:03:04.6]} 8... Rb8
{[%clk 0:02:59.4]} 9. Be3 {[%clk 0:03:03.6]} 9... b5 {[%clk 0:02:58.9]} 10. a3
{[%clk 0:03:04.2]} 10... a5 {[%clk 0:02:58.9]} 11. Nbd2 {[%clk 0:03:04.8]} 11...
b4 {[%clk 0:02:59]} 12. axb4 {[%clk 0:03:05.7]} 12... axb4 {[%clk 0:02:59.4]}
13. d4 {[%clk 0:03:06.5]} 13... bxc3 {[%clk 0:02:59.1]} 14. bxc3 {[%clk
0:03:07.4]} 14... cxd4 {[%clk 0:02:58]} 15. cxd4 {[%clk 0:03:08.3]} 15... d5
{[%clk 0:02:53.4]} 16. e5 {[%clk 0:03:08.5]} 16... Ne4 {[%clk 0:02:53.7]} 17.
Nxe4 {[%clk 0:03:08.8]} 17... dxe4 {[%clk 0:02:53.8]} 18. Ng5 {[%clk 0:03:09.6]}
18... Bb7 {[%clk 0:02:33.2]} 19. f5 {[%clk 0:02:32.9]} 19... Nb4 {[%clk
0:02:04.4]} 20. e6 {[%clk 0:02:00.9]} 20... f6 {[%clk 0:02:03.1]} 21. Nxh7
{[%clk 0:01:39.9]} 21... Kxh7 {[%clk 0:01:26.8]} 22. fxg6+ {[%clk 0:01:40.2]}
22... Kg8 {[%clk 0:01:24.4]} 23. Bc4 {[%clk 0:01:35.9]} 23... f5 {[%clk
0:00:25.1]} 24. Qh5 {[%clk 0:01:28.8]} 24... Rf6 {[%clk 0:00:25.1]} 25. Qh7+
{[%clk 0:01:25.7]} 25... Kf8 {[%clk 0:00:24.9]} 26. Bh6 {[%clk 0:01:26.2]} 1-0

[Event "*** Titled Tuesday Blitz"]
[Site "Chess.com"]
[Date "2020.11.10"]
[Round "6"]
[White "MarcoRiehle"]
[Black "hypert"]
[Result "1-0"]
[WhiteElo "2670"]
[BlackElo "2464"]
[TimeControl "180+1"]
[EndTime "11:08:11 PST"]
[Termination "MarcoRiehle won by resignation"]

1. e4 {[%clk 0:03:00.9]} 1... c5 {[%clk 0:02:59.6]} 2. a3 {[%clk 0:02:57.5]}
2... b6 {[%clk 0:02:58.5]} 3. Nc3 {[%clk 0:02:57]} 3... Bb7 {[%clk 0:02:58.8]}
4. Bc4 {[%clk 0:02:55.4]} 4... e6 {[%clk 0:02:59.1]} 5. d3 {[%clk 0:02:55.6]}
5... d5 {[%clk 0:02:56.6]} 6. Ba2 {[%clk 0:02:51.7]} 6... Nd7 {[%clk 0:02:55.8]}
7. Nf3 {[%clk 0:02:51.2]} 7... Be7 {[%clk 0:02:54]} 8. exd5 {[%clk 0:02:50.4]}
8... exd5 {[%clk 0:02:51.2]} 9. Nxd5 {[%clk 0:02:51.3]} 9... Ngf6 {[%clk
0:02:49.9]} 10. Nxe7 {[%clk 0:02:48.8]} 10... Qxe7+ {[%clk 0:02:50.8]} 11. Qe2
{[%clk 0:02:48.4]} 11... Qxe2+ {[%clk 0:02:49.3]} 12. Kxe2 {[%clk 0:02:49.3]}
12... O-O {[%clk 0:02:45.9]} 13. Be3 {[%clk 0:02:48.9]} 13... Rfe8 {[%clk
0:02:45.6]} 14. Rhe1 {[%clk 0:02:45.7]} 14... Ng4 {[%clk 0:02:42.4]} 15. h3
{[%clk 0:02:44.2]} 15... Nxe3 {[%clk 0:02:20.8]} 16. fxe3 {[%clk 0:02:45.1]}
16... Re7 {[%clk 0:02:18.9]} 17. Kf2 {[%clk 0:02:43.6]} 17... Rae8 {[%clk
0:02:19]} 18. e4 {[%clk 0:02:43.3]} 18... g6 {[%clk 0:02:18.1]} 19. Rf1 {[%clk
0:02:40.4]} 19... Kg7 {[%clk 0:02:18.5]} 20. Kg1 {[%clk 0:02:39.1]} 20... f6
{[%clk 0:02:08.4]} 21. Rae1 {[%clk 0:02:37.9]} 21... a5 {[%clk 0:02:05.6]} 22.
Bd5 {[%clk 0:02:36.5]} 22... Bxd5 {[%clk 0:01:53.3]} 23. exd5 {[%clk 0:02:36.7]}
23... Ne5 {[%clk 0:01:50.5]} 24. Kf2 {[%clk 0:02:30.9]} 24... Nf7 {[%clk
0:01:29.3]} 25. Rxe7 {[%clk 0:02:29]} 25... Rxe7 {[%clk 0:01:30.2]} 26. Re1
{[%clk 0:02:29.4]} 26... Kf8 {[%clk 0:01:30.7]} 27. Rxe7 {[%clk 0:02:25.9]}
27... Kxe7 {[%clk 0:01:31.6]} 28. c4 {[%clk 0:02:26.2]} 28... Nd6 {[%clk
0:01:27.7]} 29. b3 {[%clk 0:02:25.5]} 29... h6 {[%clk 0:01:24.4]} 30. g4 {[%clk
0:02:23.4]} 30... f5 {[%clk 0:01:22.4]} 31. d4 {[%clk 0:02:16.8]} 31... cxd4
{[%clk 0:01:18.7]} 32. Nxd4 {[%clk 0:02:17.7]} 32... fxg4 {[%clk 0:01:18.9]} 33.
hxg4 {[%clk 0:02:17.8]} 33... Kf6 {[%clk 0:01:18.9]} 34. Nf3 {[%clk 0:02:12.9]}
34... a4 {[%clk 0:01:17.9]} 35. bxa4 {[%clk 0:01:56.7]} 35... Nxc4 {[%clk
0:01:17.8]} 36. Ke2 {[%clk 0:01:48.1]} 36... Ne5 {[%clk 0:01:12.4]} 37. Nd2
{[%clk 0:01:45]} 37... Nxg4 {[%clk 0:01:03.8]} 38. Nc4 {[%clk 0:01:42.7]} 38...
h5 {[%clk 0:00:52.6]} 39. Nxb6 {[%clk 0:01:41.2]} 39... h4 {[%clk 0:00:53.2]}
40. a5 {[%clk 0:01:37.8]} 40... h3 {[%clk 0:00:53.1]} 41. Kf1 {[%clk 0:01:32.9]}
41... Ne5 {[%clk 0:00:50.5]} 42. a6 {[%clk 0:01:30.7]} 42... Nf3 {[%clk
0:00:49.5]} 43. a7 {[%clk 0:01:28.6]} 43... h2 {[%clk 0:00:48.1]} 44. Kg2 {[%clk
0:01:29.4]} 1-0

[Event "*** Titled Tuesday Blitz"]
[Site "Chess.com"]
[Date "2020.11.10"]
[Round "6"]
[White "BanjoKazooieN64"]
[Black "scarabee43"]
[Result "0-1"]
[WhiteElo "2392"]
[BlackElo "2561"]
[TimeControl "180+1"]
[EndTime "11:08:20 PST"]
[Termination "scarabee43 won by resignation"]

1. e4 {[%clk 0:03:00.9]} 1... c5 {[%clk 0:03:00.5]} 2. Nc3 {[%clk 0:03:00.7]}
2... e6 {[%clk 0:02:58.5]} 3. Nf3 {[%clk 0:02:59.7]} 3... Nc6 {[%clk 0:02:57.3]}
4. d4 {[%clk 0:02:59.8]} 4... cxd4 {[%clk 0:02:57.6]} 5. Nxd4 {[%clk 0:03:00.1]}
5... Qc7 {[%clk 0:02:58.3]} 6. f4 {[%clk 0:02:59.5]} 6... Nxd4 {[%clk 0:02:56]}
7. Qxd4 {[%clk 0:02:59]} 7... b6 {[%clk 0:02:56.7]} 8. Qf2 {[%clk 0:02:53.2]}
8... Bb7 {[%clk 0:02:56.1]} 9. Bd3 {[%clk 0:02:51.5]} 9... Nf6 {[%clk
0:02:52.8]} 10. h3 {[%clk 0:02:51.2]} 10... Bb4 {[%clk 0:02:50.4]} 11. Bd2
{[%clk 0:02:49.9]} 11... Bxc3 {[%clk 0:02:37.3]} 12. Bxc3 {[%clk 0:02:49.7]}
12... Nxe4 {[%clk 0:02:36.9]} 13. Bxe4 {[%clk 0:02:47.6]} 13... Bxe4 {[%clk
0:02:36.6]} 14. O-O-O {[%clk 0:02:06.5]} 14... d5 {[%clk 0:01:56.3]} 15. Rhg1
{[%clk 0:01:47.3]} 15... O-O {[%clk 0:01:48.4]} 16. g4 {[%clk 0:01:03.4]} 16...
Qc4 {[%clk 0:01:43.9]} 17. f5 {[%clk 0:00:55.3]} 17... Rac8 {[%clk 0:01:27.9]}
18. Qh4 {[%clk 0:00:26.5]} 18... Qxa2 {[%clk 0:01:02]} 19. f6 {[%clk 0:00:17.1]}
19... Rxc3 {[%clk 0:01:00.8]} 0-1

[Event "*** Titled Tuesday Blitz"]
[Site "Chess.com"]
[Date "2020.11.10"]
[Round "6"]
[White "nakajo"]
[Black "WeAintSurePal"]
[Result "1-0"]
[WhiteElo "2456"]
[BlackElo "2300"]
[TimeControl "180+1"]
[EndTime "11:08:24 PST"]
[Termination "nakajo won by checkmate"]

1. d4 {[%clk 0:03:00.9]} 1... Nf6 {[%clk 0:02:59.6]} 2. Nf3 {[%clk 0:03:01.4]}
2... e6 {[%clk 0:02:59.9]} 3. g3 {[%clk 0:03:01.8]} 3... d5 {[%clk 0:02:59.4]}
4. Bg2 {[%clk 0:03:02.3]} 4... Be7 {[%clk 0:02:58.6]} 5. O-O {[%clk 0:03:02.8]}
5... O-O {[%clk 0:02:58.3]} 6. b3 {[%clk 0:03:01.5]} 6... b5 {[%clk 0:02:57.5]}
7. a4 {[%clk 0:03:00.3]} 7... b4 {[%clk 0:02:56.2]} 8. c4 {[%clk 0:02:51.1]}
8... c6 {[%clk 0:02:52.4]} 9. c5 {[%clk 0:02:39.5]} 9... a5 {[%clk 0:02:51]} 10.
Ne5 {[%clk 0:02:37.8]} 10... Ba6 {[%clk 0:02:49.8]} 11. Nd2 {[%clk 0:02:33.5]}
11... Nfd7 {[%clk 0:02:49.7]} 12. f4 {[%clk 0:02:29.2]} 12... f6 {[%clk
0:02:47.3]} 13. Nd3 {[%clk 0:02:21.7]} 13... Qc7 {[%clk 0:02:45.6]} 14. Bh3
{[%clk 0:02:12.5]} 14... f5 {[%clk 0:02:45.7]} 15. Nf3 {[%clk 0:02:08.9]} 15...
Nf6 {[%clk 0:02:44.9]} 16. Bb2 {[%clk 0:02:04.7]} 16... Ne4 {[%clk 0:02:43.7]}
17. Nd2 {[%clk 0:01:57.9]} 17... Nd7 {[%clk 0:02:42.5]} 18. Nxe4 {[%clk
0:01:55.1]} 18... dxe4 {[%clk 0:02:42.7]} 19. Nf2 {[%clk 0:01:37.7]} 19... Nf6
{[%clk 0:02:41.9]} 20. Re1 {[%clk 0:01:31.4]} 20... Nd5 {[%clk 0:02:41.4]} 21.
e3 {[%clk 0:01:29.3]} 21... Kh8 {[%clk 0:02:38.9]} 22. g4 {[%clk 0:01:27.9]}
22... g6 {[%clk 0:02:38.6]} 23. Kh1 {[%clk 0:01:27]} 23... Rg8 {[%clk
0:02:38.4]} 24. Qc2 {[%clk 0:01:20.5]} 24... Kg7 {[%clk 0:02:37.4]} 25. Nxe4
{[%clk 0:01:16.9]} 25... fxe4 {[%clk 0:02:36.8]} 26. Qxe4 {[%clk 0:01:17.8]}
26... Nf6 {[%clk 0:02:32.5]} 27. Qxe6 {[%clk 0:01:02.6]} 27... Bc8 {[%clk
0:02:24.4]} 28. Qe5 {[%clk 0:00:57.3]} 28... Qxe5 {[%clk 0:02:21.7]} 29. dxe5
{[%clk 0:00:58.2]} 29... Nxg4 {[%clk 0:02:22.6]} 30. e6+ {[%clk 0:00:56.3]}
30... Nf6 {[%clk 0:02:22.7]} 31. Rad1 {[%clk 0:00:47.9]} 31... Re8 {[%clk
0:02:21.5]} 32. e4 {[%clk 0:00:44]} 32... Bxc5 {[%clk 0:02:20.5]} 33. Rc1 {[%clk
0:00:34.3]} 33... Bf2 {[%clk 0:02:15.8]} 34. Re2 {[%clk 0:00:31]} 34... Bh4
{[%clk 0:02:12]} 35. Rxc6 {[%clk 0:00:29.6]} 35... Re7 {[%clk 0:02:12.2]} 36.
Rd6 {[%clk 0:00:20.5]} 36... Bb7 {[%clk 0:02:12]} 37. Rd7 {[%clk 0:00:19.6]}
37... Rxd7 {[%clk 0:02:10.5]} 38. exd7 {[%clk 0:00:19.6]} 38... Rd8 {[%clk
0:02:11]} 39. Kg1 {[%clk 0:00:18.3]} 39... Kf7 {[%clk 0:02:11]} 40. e5 {[%clk
0:00:18.4]} 40... Nd5 {[%clk 0:02:08.3]} 41. e6+ {[%clk 0:00:16.5]} 41... Ke7
{[%clk 0:02:08.5]} 42. Bd4 {[%clk 0:00:16.2]} 42... Kd6 {[%clk 0:01:56.2]} 43.
Be5+ {[%clk 0:00:14.7]} 43... Kc5 {[%clk 0:01:56.5]} 44. Rc2+ {[%clk 0:00:13.6]}
44... Kb6 {[%clk 0:01:56.8]} 45. Bd4+ {[%clk 0:00:09.9]} 45... Ka6 {[%clk
0:01:56.4]} 46. Bf1# {[%clk 0:00:10]} 1-0

[Event "*** Titled Tuesday Blitz"]
[Site "Chess.com"]
[Date "2020.11.10"]
[Round "6"]
[White "petrkostenko"]
[Black "BJthechessgod"]
[Result "1-0"]
[WhiteElo "2462"]
[BlackElo "2301"]
[TimeControl "180+1"]
[EndTime "11:08:25 PST"]
[Termination "petrkostenko won by resignation"]

1. c4 {[%clk 0:03:00.9]} 1... Nf6 {[%clk 0:02:57.5]} 2. g3 {[%clk 0:02:59.9]}
2... e6 {[%clk 0:02:56.1]} 3. Bg2 {[%clk 0:02:59.9]} 3... Be7 {[%clk 0:02:55.3]}
4. Nf3 {[%clk 0:02:59.3]} 4... O-O {[%clk 0:02:53.9]} 5. O-O {[%clk 0:02:59.1]}
5... d5 {[%clk 0:02:54.5]} 6. b3 {[%clk 0:02:59.4]} 6... b6 {[%clk 0:02:53.1]}
7. Bb2 {[%clk 0:02:56.6]} 7... Bb7 {[%clk 0:02:51.3]} 8. e3 {[%clk 0:02:56.2]}
8... dxc4 {[%clk 0:02:37.9]} 9. bxc4 {[%clk 0:02:54.7]} 9... c5 {[%clk
0:02:38.5]} 10. Nc3 {[%clk 0:02:49.8]} 10... Nc6 {[%clk 0:02:37.8]} 11. Qe2
{[%clk 0:02:49]} 11... Qd7 {[%clk 0:02:34.1]} 12. Rad1 {[%clk 0:02:46.8]} 12...
Rfd8 {[%clk 0:02:28.9]} 13. Ne1 {[%clk 0:02:46.3]} 13... Rac8 {[%clk 0:02:25.5]}
14. f4 {[%clk 0:02:45]} 14... Na5 {[%clk 0:02:19.2]} 15. d3 {[%clk 0:02:28.6]}
15... Bxg2 {[%clk 0:02:03]} 16. Nxg2 {[%clk 0:02:27]} 16... Nc6 {[%clk 0:01:57]}
17. g4 {[%clk 0:02:26.6]} 17... Nb4 {[%clk 0:01:35.9]} 18. g5 {[%clk 0:02:23.3]}
18... Ne8 {[%clk 0:01:28.1]} 19. a3 {[%clk 0:02:22.9]} 19... Nc6 {[%clk
0:01:00.6]} 20. Rf3 {[%clk 0:02:20.3]} 20... g6 {[%clk 0:00:47.8]} 21. Ne4
{[%clk 0:02:05.2]} 21... e5 {[%clk 0:00:36.7]} 22. fxe5 {[%clk 0:01:54.1]} 22...
Qg4 {[%clk 0:00:32.4]} 23. Rdf1 {[%clk 0:01:32.3]} 23... Bxg5 {[%clk 0:00:26.3]}
24. Qf2 {[%clk 0:01:19.8]} 24... f5 {[%clk 0:00:08]} 25. exf6 {[%clk 0:01:17.4]}
25... Kf7 {[%clk 0:00:08.6]} 26. Rg3 {[%clk 0:01:16]} 26... Qe6 {[%clk
0:00:02.2]} 27. Nxg5+ {[%clk 0:01:15.3]} 1-0

[Event "*** Titled Tuesday Blitz"]
[Site "Chess.com"]
[Date "2020.11.10"]
[Round "6"]
[White "Anaj14"]
[Black "ErikBlomqvist"]
[Result "1-0"]
[WhiteElo "2353"]
[BlackElo "2457"]
[TimeControl "180+1"]
[EndTime "11:08:40 PST"]
[Termination "Anaj14 won by resignation"]

1. Nf3 {[%clk 0:03:00.9]} 1... c5 {[%clk 0:02:58.4]} 2. g3 {[%clk 0:02:57.5]}
2... Nc6 {[%clk 0:02:57.6]} 3. Bg2 {[%clk 0:02:58]} 3... g6 {[%clk 0:02:58.2]}
4. d4 {[%clk 0:02:55.2]} 4... cxd4 {[%clk 0:02:57.5]} 5. Nxd4 {[%clk 0:02:56.1]}
5... Bg7 {[%clk 0:02:58.2]} 6. Nb3 {[%clk 0:02:56.3]} 6... d6 {[%clk 0:02:58.4]}
7. O-O {[%clk 0:02:56.3]} 7... Be6 {[%clk 0:02:58.5]} 8. Nc3 {[%clk 0:02:55.5]}
8... Qd7 {[%clk 0:02:56.8]} 9. Re1 {[%clk 0:02:54.1]} 9... h5 {[%clk 0:02:56.1]}
10. h4 {[%clk 0:02:53.3]} 10... Nf6 {[%clk 0:02:43.1]} 11. Bg5 {[%clk
0:02:48.9]} 11... Ng4 {[%clk 0:02:40.8]} 12. Rb1 {[%clk 0:02:37.3]} 12... O-O
{[%clk 0:02:34.9]} 13. Nd5 {[%clk 0:02:27.8]} 13... Rfe8 {[%clk 0:02:28.4]} 14.
e4 {[%clk 0:02:22.3]} 14... Rac8 {[%clk 0:02:25.7]} 15. c3 {[%clk 0:02:21.2]}
15... Nce5 {[%clk 0:02:07.6]} 16. Nd4 {[%clk 0:02:13]} 16... Bxd5 {[%clk
0:01:51.2]} 17. exd5 {[%clk 0:02:12.7]} 17... Nc4 {[%clk 0:01:48.8]} 18. b3
{[%clk 0:02:00.6]} 18... Na3 {[%clk 0:01:34.7]} 19. Rc1 {[%clk 0:02:00.1]} 19...
Nb5 {[%clk 0:01:14.7]} 20. Nxb5 {[%clk 0:01:56.5]} 20... Qxb5 {[%clk 0:01:15.6]}
21. Rxe7 {[%clk 0:01:45.4]} 21... Rxc3 {[%clk 0:00:52]} 22. Rxc3 {[%clk
0:01:44.4]} 22... Bxc3 {[%clk 0:00:52.9]} 23. Qc2 {[%clk 0:01:14.4]} 23... Rxe7
{[%clk 0:00:37.9]} 24. Bxe7 {[%clk 0:01:12.7]} 24... Bd4 {[%clk 0:00:38.1]} 25.
Bxd6 {[%clk 0:01:03.4]} 25... Nxf2 {[%clk 0:00:34]} 26. Qc8+ {[%clk 0:00:56.7]}
26... Kg7 {[%clk 0:00:32.9]} 27. Qf8+ {[%clk 0:00:50.7]} 27... Kf6 {[%clk
0:00:30.1]} 28. Qh8+ {[%clk 0:00:46.5]} 28... Kf5 {[%clk 0:00:29.2]} 29. Qxd4
{[%clk 0:00:45.6]} 29... Qb6 {[%clk 0:00:25.9]} 1-0